bitfinex/quotes_ETHUSD_20240822
["timestamp","ask_amount","ask_price","bid_price","bid_amount"]
[1724358823488,3.81956,2618.1,2618.0,3.6016]
[1724358824386,3.81956,2618.1,2618.0,4.07666]
[1724358828761,3.81936,2618.3,2618.0,4.07666]
[1724358828990,3.81936,2618.3,2618.2,1.149]
[1724358829427,3.81907,2618.5,2618.2,1.149]
[1724358829567,7.63816,2618.5,2618.2,1.149]
[1724358829765,7.63815,2618.5,2618.2,2.053535]
[1724358829967,3.81912,2618.4,2618.2,2.053535]
[1724358831270,3.81927,2618.3,2618.2,0.904535]
[1724358831470,3.81941,2618.2,2618.1,1.149]
[1724358831692,3.81928,2618.3,2618.1,1.149]
[1724358832504,3.81941,2618.2,2618.1,1.149]
[1724358834905,3.81912,2618.4,2618.1,4.712]
[1724358835204,3.81912,2618.4,2618.3,1.149]
[1724358841293,3.81916,2618.4,2618.1,1.149]
[1724358841497,3.81941,2618.2,2618.1,1.149]
[1724358842637,3.81941,2618.2,2617.9,1.149]
[1724358843013,3.81941,2618.2,2617.9,2.002613]
[1724358843233,7.63894,2618.2,2617.9,2.002613]
[1724358843399,3.81941,2618.2,2617.9,2.002613]
[1724358850229,7.63846,2618.4,2618.1,4.7131]
[1724358850452,3.81927,2618.3,2618.1,1.149]
[1724358850768,3.81921,2618.4,2618.3,1.149]
[1724358852821,3.81928,2618.3,2618.1,1.149]
[1724358853633,3.81913,2618.4,2618.1,1.149]
[1724358855470,3.81941,2618.2,2618.1,1.149]
[1724358856000,3.81939,2618.3,2618.1,1.149]
[1724358856725,3.81941,2618.2,2618.1,1.149]
[1724358858327,3.81941,2618.2,2617.9,4.7131]
[1724358859527,3.81957,2618.1,2617.9,1.149]
[1724358863599,7.39938,2618.3,2617.9,1.149]
[1724358864476,3.81945,2618.2,2617.9,1.149]
[1724358870455,3.81957,2618.1,2617.9,1.149]
[1724358872548,11.21878,2618.3,2617.9,1.149]
[1724358873711,3.81938,2618.3,2617.9,1.149]
[1724358873909,3.81938,2618.3,2617.9,5.5475]
[1724358874111,7.63872,2618.3,2617.9,5.5475]
[1724358874266,3.81935,2618.3,2617.9,5.5475]
[1724358874666,7.63871,2618.3,2617.9,5.5475]
[1724358876321,3.81935,2618.3,2617.9,5.5475]
[1724358878802,3.81913,2618.4,2618.1,1.149]
[1724358879103,6.62797722,2618.5,2618.1,1.149]
[1724358879104,3.81898,2618.5,2618.1,1.149]
[1724358882519,3.81914,2618.4,2618.1,1.149]
[1724358882751,3.81914,2618.4,2618.2,0.5905353]
[1724358884823,3.81914,2618.4,2618.1,1.149]
[1724358885610,3.81914,2618.4,2618.2,2.3541]
[1724358886350,7.63834,2618.4,2618.2,2.3541]
[1724358888611,3.81914,2618.4,2618.2,2.3541]
[1724358888808,3.81939,2618.3,2618.0,3.290843]
[1724358889037,3.81946,2618.2,2618.0,3.5031]
[1724358889234,3.81946,2618.2,2618.0,1.149]
[1724358890054,3.81956,2618.1,2618.0,1.149]
[1724358890211,3.81956,2618.1,2617.9,1.149]
[1724358893364,3.8197,2618.0,2617.9,1.149]
[1724358893854,3.82007,2617.8,2617.4,6.5031]
[1724358894054,4.3697,2618.0,2617.6,1.149]
[1724358894055,3.81987,2617.9,2617.6,1.149]
[1724358894471,4.3697,2618.0,2617.6,1.149]
[1724358895222,7.63902,2618.2,2617.8,1.149]
[1724358895577,3.81922,2618.4,2618.0,1.149]
[1724358895779,7.63849,2618.4,2618.0,1.149]
[1724358895985,3.81934,2618.3,2617.8,4.96897]
[1724358896183,3.81934,2618.3,2617.8,5.80716646]
[1724358900194,3.81941,2618.2,2617.8,1.98719646]
[1724358900395,7.63893,2618.2,2617.8,1.98719646]
[1724358900643,3.8196,2618.1,2617.8,1.98719646]
[1724358901239,3.8196,2618.1,2617.8,1.149]
[1724358901733,2.4077,2618.5,2617.8,1.149]
[1724358901734,3.81975,2618.0,2617.8,1.149]
[1724358903536,3.81956,2618.2,2617.8,1.149]
[1724358904600,7.63874,2618.3,2617.9,2.4733]
[1724358905121,7.63877,2618.3,2617.9,2.4733]
[1724358905323,7.63877,2618.3,2617.9,3.32343246]
[1724358909536,3.81942,2618.2,2617.9,3.32343246]
[1724358914435,3.81942,2618.2,2617.9,2.4733]
[1724358915445,3.81957,2618.1,2617.9,2.4733]
[1724358915734,3.81957,2618.1,2617.8,1.149]
[1724358915952,3.81942,2618.2,2617.8,1.149]
[1724358917134,3.81964,2618.1,2617.7,2.421]
[1724358917737,3.81942,2618.2,2617.7,6.24113]
[1724358918209,7.63894,2618.2,2617.7,6.24113]
[1724358918412,3.81942,2618.2,2617.7,6.24113]
[1724358918631,3.81942,2618.2,2617.8,1.149]
[1724358919750,7.63896,2618.2,2617.8,1.149]
[1724358919967,3.81942,2618.2,2617.8,1.149]
[1724358921469,3.81942,2618.2,2617.7,7.39013]
[1724358921620,3.81942,2618.2,2617.7,8.811185]
[1724358923743,3.81942,2618.2,2617.7,12.631255]
[1724358924060,3.81942,2618.2,2617.7,8.811125]
[1724358926660,3.8192,2618.4,2617.9,1.149]
[1724358926821,3.8192,2618.4,2618.0,2.2756]
[1724358927026,7.63784,2618.6,2618.1,1.149]
[1724358927227,6.6281043,2618.7,2618.1,4.96846]
[1724358927423,6.6278543,2618.8,2618.5,1.149]
[1724358927628,3.81855,2618.8,2618.5,1.149]
[1724358929119,3.81869,2618.7,2618.5,1.149]
[1724358929324,7.63747,2618.7,2618.3,1.149]
[1724358929569,3.81886,2618.6,2618.3,1.149]
[1724358930511,3.81902,2618.5,2618.2,2.2756]
[1724358931287,3.81902,2618.5,2618.2,3.1106675]
[1724358935858,3.81942,2618.2,2617.7,6.27274]
[1724358935995,3.81939,2618.3,2617.8,1.149]
[1724358936343,3.81959,2618.1,2617.8,1.149]
[1724358936514,3.81959,2618.1,2617.9,0.742174]
[1724358936852,7.6388,2618.3,2617.9,0.742174]
[1724358937212,7.63875,2618.3,2617.9,0.742174]
[1724358937413,3.81936,2618.3,2617.9,0.742174]
[1724358938102,7.6387,2618.3,2617.9,0.742174]
[1724358938944,3.81934,2618.3,2618.0,3.0237164]
[1724358939156,7.63874,2618.3,2618.0,3.0237164]
[1724358941363,7.6387,2618.3,2618.0,3.0237164]
[1724358941647,7.63871,2618.3,2618.0,3.0237164]
[1724358941840,3.81934,2618.3,2618.0,3.0237164]
[1724358942547,7.63871,2618.3,2618.0,3.0237164]
[1724358942900,3.81934,2618.3,2618.0,3.0237164]
[1724358949537,3.81934,2618.3,2618.0,4.1727164]
[1724358952839,7.63874,2618.3,2618.0,4.1727164]
[1724358954295,3.81944,2618.2,2618.0,4.1727164]
[1724358955195,3.81941,2618.2,2618.0,2.4526]
[1724358955397,3.8196,2618.1,2617.8,2.4116]
[1724358957884,7.64013,2617.8,2617.5,2.4924]
[1724358958082,7.64012,2617.8,2617.5,2.4924]
[1724358958239,3.82,2617.8,2617.5,2.4924]
[1724358960438,3.82015,2617.7,2617.5,2.4924]
[1724358960957,3.82,2617.8,2617.5,2.4924]
[1724358962037,3.82,2617.8,2617.6,1.149]
[1724358962243,3.81981,2618.0,2617.7,2.2655]
[1724358963965,3.81979,2618.0,2617.7,2.2655]
[1724358964173,7.6396,2618.0,2617.7,2.2655]
[1724358964555,3.81979,2618.0,2617.7,2.2655]
[1724358964774,7.63958,2618.0,2617.7,2.2655]
[1724358964969,3.81992,2617.9,2617.7,2.2655]
[1724358970150,3.81992,2617.9,2617.7,2.681571]
[1724358971690,3.81979,2618.0,2617.7,2.681571]
[1724358971996,3.81979,2618.0,2617.7,2.2655]
[1724358972301,3.81997,2617.9,2617.7,2.2655]
[1724358972885,3.81985,2617.9,2617.7,2.2655]
[1724358973405,3.82014,2617.7,2617.6,1.149]
[1724358975549,3.82033,2617.6,2617.4,2.2925]
[1724358975844,3.82033,2617.6,2617.5,1.149]
[1724358976046,3.82014,2617.7,2617.5,1.149]
[1724358976409,3.82029,2617.6,2617.5,1.149]
[1724358977646,3.82029,2617.6,2617.4,2.2925]
[1724358977947,3.82029,2617.6,2617.5,1.149]
[1724358978867,7.64013,2617.8,2617.5,1.149]
[1724358979019,7.64009,2617.8,2617.5,1.149]
[1724358979225,7.6401,2617.8,2617.5,1.149]
[1724358979842,3.82001,2617.8,2617.5,1.149]
[1724358981967,7.64009,2617.8,2617.5,1.149]
[1724358982680,3.82001,2617.8,2617.5,1.149]
[1724358983179,7.6401,2617.8,2617.5,1.149]
[1724358983523,3.82001,2617.8,2617.5,1.149]
[1724358984780,7.6401,2617.8,2617.5,1.149]
[1724358986543,3.82001,2617.8,2617.5,1.149]
[1724358986840,7.64008,2617.8,2617.5,1.149]
[1724358989174,3.82001,2617.8,2617.5,1.149]
[1724358989374,7.64009,2617.8,2617.5,1.149]
[1724358992469,3.82016,2617.7,2617.5,1.149]
[1724358997436,3.82044,2617.5,2617.3,7.36]
[1724358997595,3.82044,2617.5,2617.0,3.0]
[1724358997596,6.10234,2617.5,2617.0,7.36]
[1724358997773,6.10234,2617.5,2617.0,9.217016]
[1724358997979,3.82065,2617.4,2617.1,1.149]
[1724359002656,3.82044,2617.5,2617.1,1.149]
[1724359002892,3.82029,2617.6,2617.3,1.149]
[1724359004285,3.82009,2617.8,2617.3,1.149]
[1724359004489,3.81956,2618.1,2617.7,1.149]
[1724359005862,3.81971,2618.0,2617.7,1.149]
[1724359008411,3.81964,2618.1,2617.9,1.149]
[1724359008577,3.81947,2618.2,2617.9,1.149]
[1724359009985,3.81956,2618.1,2617.9,1.149]
[1724359010730,3.81947,2618.2,2617.9,1.50436]
[1724359012205,7.63898,2618.2,2617.9,1.50436]
[1724359012600,7.63898,2618.2,2617.6,7.64035]
[1724359012601,3.81983,2618.0,2617.4,3.5814]
[1724359012811,3.82007,2617.8,2617.4,3.5814]
[1724359015724,3.82007,2617.8,2617.4,2.4324]
[1724359015928,3.82007,2617.8,2617.4,6.5814]
[1724359016086,3.82007,2617.8,2617.5,0.76815265]
[1724359019429,3.81986,2617.9,2617.5,0.76815265]
[1724359022960,3.81979,2618.0,2617.1,12.45]
[1724359022961,1.149,2617.7,2617.1,2.4738]
[1724359023270,3.82052,2617.5,2616.9,7.44399]
[1724359023618,3.82061,2617.4,2616.9,7.44399]
[1724359023919,3.82061,2617.4,2617.0,0.744399]
[1724359027372,3.82074,2617.3,2617.0,0.744399]
[1724359027668,3.82074,2617.3,2616.9,3.6228]
[1724359031452,3.82088,2617.2,2616.9,3.6228]
[1724359038264,3.82088,2617.2,2616.7,3.6296]
[1724359038658,7.64185,2617.2,2616.7,7.4512]
[1724359038992,3.82102,2617.1,2616.7,3.6296]
[1724359040868,7.64184,2617.2,2616.7,3.6296]
[1724359041706,3.82104,2617.1,2616.7,3.6296]
[1724359042108,3.82088,2617.2,2616.7,3.6296]
[1724359042321,3.82117,2617.0,2616.5,2.2523]
[1724359042549,3.82117,2617.0,2616.5,3.4013]
[1724359042724,3.82154,2616.8,2616.3,7.36]
[1724359042919,3.82178,2616.6,2616.2,3.4013]
[1724359043292,3.82178,2616.6,2616.2,4.83118415]
[1724359045293,7.64367,2616.6,2616.2,4.83118415]
[1724359045906,3.8219,2616.5,2616.2,4.83118415]
[1724359046875,3.8219,2616.5,2616.1,3.82239]
[1724359046876,3.82219,2616.3,2616.0,7.36]
[1724359048420,3.82219,2616.3,2615.8,6.30751]
[1724359048598,3.82219,2616.3,2615.9,1.149]
[1724359052138,3.82242,2616.2,2615.9,1.149]
[1724359055165,3.82262,2616.0,2615.9,1.149]
[1724359057027,3.8226,2616.1,2615.9,1.149]
[1724359057228,7.6452,2616.1,2615.9,1.149]
[1724359057462,3.8226,2616.1,2615.9,1.149]
[1724359063888,3.82228,2616.3,2615.9,1.894666]
[1724359064092,3.82214,2616.4,2615.9,5.717386]
[1724359065430,3.8222,2616.3,2615.9,5.717386]
[1724359067472,3.8222,2616.3,2615.9,1.894666]
[1724359068238,3.82237,2616.2,2615.9,1.894666]
[1724359070395,3.82237,2616.2,2615.9,1.149]
[1724359073014,3.82262,2616.0,2615.9,1.149]
[1724359074100,3.82262,2616.0,2615.6,7.36]
[1724359074283,3.82271,2616.0,2615.6,7.36]
[1724359074476,2.2983,2616.1,2615.6,7.36]
[1724359074477,3.82286,2615.9,2615.6,7.36]
[1724359078518,3.82286,2615.9,2615.5,3.5612]
[1724359078748,3.82286,2615.9,2615.5,5.927026]
[1724359079345,3.82264,2616.0,2615.5,9.750376]
[1724359079695,3.82264,2616.0,2615.7,1.149]
[1724359079900,3.82243,2616.2,2615.8,2.4935]
[1724359080354,7.64485,2616.2,2615.8,2.4935]
[1724359080560,7.64485,2616.2,2615.3,12.45]
[1724359080561,3.82289,2615.9,2615.4,3.82345]
[1724359080758,10.12049,2616.1,2615.5,7.29504]
[1724359081054,3.82267,2616.0,2615.5,9.651901]
[1724359081705,3.82267,2616.0,2615.7,1.149]
[1724359082744,3.82252,2616.1,2615.8,2.4601]
[1724359083356,3.82247,2616.2,2615.8,2.4601]
[1724359083509,7.64492,2616.2,2615.8,2.4601]
[1724359084156,3.82248,2616.1,2615.8,2.4601]
[1724359087649,3.82245,2616.2,2615.8,2.4601]
[1724359088776,3.8225,2616.1,2615.8,2.4601]
[1724359107822,3.82245,2616.2,2615.9,1.149]
[1724359108181,3.82222,2616.3,2616.1,3.6282]
[1724359108384,3.82222,2616.3,2616.1,2.4792]
[1724359112667,3.82222,2616.3,2615.9,3.6282]
[1724359113317,3.82222,2616.3,2615.9,5.491608]
[1724359115336,3.82257,2616.1,2615.9,2.4792]
[1724359118041,3.82257,2616.1,2615.8,1.149]
[1724359121681,3.82228,2616.3,2615.8,1.149]
[1724359121682,3.82235,2616.2,2615.8,1.149]
[1724359138161,3.82235,2616.2,2615.8,1.14751464]
[1724359140986,3.82235,2616.2,2615.8,4.97043464]
[1724359144609,3.82235,2616.2,2615.8,1.14751464]
[1724359153585,3.82199,2616.5,2615.9,2.3553]
[1724359153787,3.82211,2616.4,2616.0,2.3553]
[1724359154328,3.82211,2616.4,2616.0,3.5043]
[1724359154646,3.8222,2616.3,2616.0,3.5043]
[1724359158788,7.64446,2616.3,2616.0,3.5043]
[1724359159090,3.8222,2616.3,2616.0,3.5043]
[1724359160301,7.64448,2616.3,2616.0,3.5043]
[1724359160502,3.8222,2616.3,2616.0,3.5043]
[1724359160701,7.64449,2616.3,2616.0,3.5043]
[1724359161147,3.8222,2616.3,2616.0,3.5043]
[1724359161851,7.6445,2616.3,2616.0,3.5043]
[1724359166550,3.82235,2616.2,2616.0,3.5043]
[1724359167073,3.82235,2616.2,2616.0,2.3553]
[1724359184191,3.82248,2616.1,2616.0,2.3553]
[1724359185692,3.82274,2616.0,2615.7,9.8073]
[1724359185906,3.82274,2616.0,2615.8,1.149]
[1724359188616,7.64507,2616.1,2615.8,1.149]
[1724359189108,3.82263,2616.0,2615.8,1.149]
[1724359191195,3.82235,2616.2,2615.8,1.149]
[1724359191196,3.82249,2616.1,2615.8,1.149]
[1724359196622,3.82249,2616.1,2615.7,2.4473]
[1724359198341,7.64477,2616.2,2615.7,6.27029]
[1724359198499,7.64477,2616.2,2615.8,1.149]
[1724359199637,3.82255,2616.1,2615.8,1.149]
[1724359200518,3.82255,2616.1,2615.7,2.4473]
[1724359202896,3.82235,2616.2,2615.9,2.4901]
[1724359204033,2.8119366,2616.6,2616.1,2.4172]
[1724359204198,2.76380382,2617.6,2616.7,3.82147]
[1724359204199,2.8119366,2617.0,2616.7,3.82147]
[1724359204399,5.41304374,2617.6,2616.9,7.38751]
[1724359204649,7.64073,2617.6,2617.4,1.149]
[1724359204886,3.82043,2617.5,2617.2,1.149]
[1724359205225,3.82034,2617.6,2617.3,2.4172]
[1724359205747,3.82067,2617.4,2617.2,1.149]
[1724359205964,3.82067,2617.4,2617.0,2.4172]
[1724359206280,3.82067,2617.4,2617.0,3.5662]
[1724359207553,3.8209,2617.2,2617.0,3.5662]
[1724359211880,7.64138,2617.4,2617.0,3.92282]
[1724359212052,3.82073,2617.3,2617.2,1.149]
[1724359218450,3.82073,2617.3,2617.0,3.5662]
[1724359221560,3.82067,2617.4,2617.2,1.149]
[1724359222870,7.64135,2617.4,2617.2,1.149]
[1724359223477,3.82073,2617.3,2617.2,1.149]
[1724359223731,3.82058,2617.5,2617.2,1.149]
[1724359224016,3.82062,2617.4,2617.2,1.149]
[1724359224557,3.82073,2617.3,2617.2,1.149]
[1724359225005,3.82058,2617.5,2617.2,1.149]
[1724359225006,3.82057,2617.5,2617.2,1.149]
[1724359225513,3.82061,2617.4,2617.2,1.149]
[1724359226583,3.82061,2617.4,2617.0,2.4172]
[1724359226785,3.82061,2617.4,2617.1,1.149]
[1724359227764,3.82073,2617.3,2617.1,1.149]
[1724359228819,3.82102,2617.1,2617.0,2.4172]
[1724359231613,3.82102,2617.1,2616.9,1.149]
[1724359231921,3.82088,2617.2,2616.9,1.149]
[1724359232070,3.82116,2617.0,2616.9,1.149]
[1724359233369,3.82116,2617.0,2616.8,2.3401]
[1724359233624,3.82183,2616.6,2616.4,7.36]
[1724359233770,3.82163,2616.7,2616.4,7.36]
[1724359233967,3.82183,2616.6,2616.4,8.44576]
[1724359234364,3.82183,2616.6,2616.4,7.36]
[1724359239010,3.82183,2616.6,2616.3,3.4976]
[1724359239929,3.82191,2616.5,2616.3,1.149]
[1724359240233,3.82191,2616.5,2616.0,7.36]
[1724359240234,3.82213,2616.4,2616.0,7.36]
[1724359242472,3.82221,2616.3,2616.0,7.36]
[1724359242770,3.82233,2616.2,2616.0,7.36]
[1724359244967,3.82233,2616.2,2615.9,3.4224]
[1724359245876,3.82219,2616.3,2615.9,3.4224]
[1724359246108,3.82219,2616.3,2615.9,4.529232]
[1724359249932,3.82219,2616.3,2616.1,1.149]
[1724359251319,3.82242,2616.2,2615.7,3.432]
[1724359251482,7.64541,2616.0,2615.7,3.432]
[1724359251811,3.8227,2616.0,2615.7,3.432]
[1724359252012,3.8228,2615.9,2615.6,7.36]
[1724359252213,3.82299,2615.8,2615.3,22.093]
[1724359252524,3.82326,2615.6,2615.4,1.149]
[1724359252683,3.82326,2615.6,2615.3,2.283]
[1724359258329,3.82326,2615.6,2615.4,1.149]
[1724359259531,3.82307,2615.7,2615.4,1.149]
[1724359263445,3.82307,2615.7,2615.2,4.97279]
[1724359264263,3.82321,2615.6,2615.2,3.82379]
[1724359264466,3.82314,2615.7,2615.3,1.149]
[1724359278786,3.82337,2615.5,2615.1,3.5093]
[1724359282996,7.64683,2615.5,2615.1,3.5093]
[1724359283295,3.82366,2615.3,2615.1,2.3603]
[1724359283505,3.82337,2615.5,2615.0,7.36]
[1724359283506,3.82351,2615.4,2615.0,7.36]
[1724359284047,3.82367,2615.3,2615.0,7.36]
[1724359286094,7.64687,2615.5,2615.0,7.36]
[1724359286667,7.64687,2615.5,2615.1,1.149]
[1724359287789,3.82337,2615.5,2615.1,1.149]
[1724359288159,7.64686,2615.5,2615.1,1.149]
[1724359288705,3.82352,2615.4,2615.1,1.149]
[1724359291211,3.82352,2615.4,2614.9,3.5968]
[1724359291366,3.82374,2615.3,2614.9,3.5968]
[1724359291875,3.8238,2615.2,2614.9,3.5968]
[1724359292072,3.82352,2615.4,2614.9,3.5968]
[1724359292277,3.82367,2615.3,2614.9,3.5968]
[1724359298517,3.82381,2615.2,2614.9,3.5968]
[1724359299318,3.82381,2615.2,2614.9,5.074909]
[1724359303684,3.82381,2615.2,2614.9,3.5968]
[1724359308921,3.82366,2615.3,2614.9,2.4478]
[1724359309094,3.82381,2615.2,2614.9,2.4478]
[1724359317124,3.82381,2615.2,2615.0,1.149]
[1724359317630,3.82366,2615.3,2614.9,2.4478]
[1724359324041,3.82351,2615.4,2615.1,1.149]
[1724359324202,3.82336,2615.5,2615.2,2.3004]
[1724359325924,3.82352,2615.4,2615.2,2.3004]
[1724359326120,3.82336,2615.5,2615.2,2.3004]
[1724359327098,7.64685,2615.5,2615.2,2.3004]
[1724359328427,3.82353,2615.4,2615.2,2.3004]
[1724359333004,3.8235,2615.4,2615.2,2.3004]
[1724359334901,3.82365,2615.3,2615.2,2.3004]
[1724359337788,2.4716,2615.7,2615.0,2.2994]
[1724359338083,3.82394,2615.1,2615.0,2.2994]
[1724359338532,7.64798,2615.1,2614.8,3.4484]
[1724359338731,3.82394,2615.1,2614.8,4.911707]
[1724359338945,3.82394,2615.1,2614.8,3.4484]
[1724359341658,3.8238,2615.2,2614.8,3.4484]
[1724359346084,3.8238,2615.2,2614.8,7.27277]
[1724359350797,3.82366,2615.3,2614.8,7.27277]
[1724359350972,3.82366,2615.3,2614.8,8.382512]
[1724359355402,6.21746,2615.3,2614.8,7.233512]
[1724359355649,3.82403,2615.1,2614.6,6.19966]
[1724359355765,3.82396,2615.1,2614.6,8.19445185]
[1724359355966,7.64798,2615.1,2614.6,8.19445185]
[1724359356165,3.82396,2615.1,2614.6,9.29374605]
[1724359356466,3.82396,2615.1,2614.6,7.2989542]
[1724359356668,3.82396,2615.1,2614.6,11.1235442]
[1724359357089,3.82396,2615.1,2614.7,1.149]
[1724359359119,3.82396,2615.1,2614.7,4.97351]
[1724359362104,6.21755,2615.3,2614.4,7.36]
[1724359362105,3.82447,2614.8,2614.4,7.36]
[1724359363223,3.82426,2614.9,2614.4,7.36]
[1724359363721,3.82426,2614.9,2614.4,11.18496]
[1724359363932,3.82426,2614.9,2614.4,12.33396]
[1724359364236,2.3368,2615.0,2614.6,1.149]
[1724359364528,3.82424,2614.9,2614.6,1.149]
[1724359365027,3.82424,2614.9,2614.5,2.3644]
[1724359371133,3.82438,2614.8,2614.5,2.3644]
[1724359371332,3.82453,2614.7,2614.4,8.509]
[1724359372522,7.64914,2614.7,2614.4,8.509]
[1724359372744,3.82453,2614.7,2614.4,8.509]
[1724359372940,3.82453,2614.7,2614.4,1.149]
[1724359373439,3.82438,2614.8,2614.4,1.149]
[1724359378327,3.82432,2614.9,2614.6,1.149]
[1724359378517,3.82403,2615.1,2614.7,2.4607]
[1724359379711,7.64809,2615.1,2614.7,2.4607]
[1724359380050,3.82403,2615.1,2614.7,2.4607]
[1724359380715,3.82409,2615.0,2614.7,2.4607]
[1724359383302,3.82403,2615.1,2614.9,1.149]
[1724359384115,7.64806,2615.1,2614.7,4.353144]
[1724359384316,3.82403,2615.1,2614.7,4.353144]
[1724359384844,3.8241,2615.0,2614.7,4.353144]
[1724359386249,3.82403,2615.1,2614.7,4.353144]
[1724359387648,7.64805,2615.1,2614.7,4.353144]
[1724359388209,3.82402,2615.1,2614.7,4.353144]
[1724359388520,3.8241,2615.0,2614.7,4.353144]
[1724359395264,7.64776,2615.2,2614.7,4.353144]
[1724359395561,3.82382,2615.2,2614.7,3.6097]
[1724359395763,3.82396,2615.1,2614.7,3.6097]
[1724359397114,3.8238,2615.2,2614.7,3.6097]
[1724359397328,3.82369,2615.3,2614.9,1.149]
[1724359397880,3.82369,2615.3,2615.0,2.369]
[1724359398901,3.82381,2615.2,2615.0,2.369]
[1724359403228,7.64771,2615.2,2615.0,2.369]
[1724359404092,7.64771,2615.2,2614.9,1.149]
[1724359404409,3.82404,2615.1,2614.8,2.2507]
[1724359406093,3.82423,2614.9,2614.8,2.2507]
[1724359406304,6.22013,2614.9,2614.5,7.36]
[1724359406543,3.82439,2614.8,2614.5,10.077436]
[1724359406898,3.82439,2614.8,2614.5,7.36]
[1724359408054,3.82425,2614.9,2614.5,7.36]
[1724359408718,3.82425,2614.9,2614.4,11.18924]
[1724359410658,2.3959,2614.7,2614.3,1.149]
[1724359410999,3.82468,2614.6,2614.3,1.149]
[1724359412361,7.64894,2614.8,2614.3,1.149]
[1724359414654,3.82442,2614.8,2614.3,1.149]
[1724359414857,7.64891,2614.8,2614.3,1.149]
[1724359415099,3.82442,2614.8,2614.3,1.149]
[1724359415255,7.64889,2614.8,2614.3,1.149]
[1724359415456,3.82442,2614.8,2614.3,1.149]
[1724359415703,7.64889,2614.8,2614.3,1.149]
[1724359416008,3.82442,2614.8,2614.3,4.97411]
[1724359416590,7.64889,2614.8,2614.3,4.97411]
[1724359416800,3.82442,2614.8,2614.3,4.97411]
[1724359420575,6.22015,2614.9,2614.4,2.333]
[1724359420772,3.8239,2615.2,2614.6,3.82458]
[1724359421114,3.8239,2615.2,2614.7,3.482]
[1724359421424,4.37394,2615.1,2614.7,3.482]
[1724359422472,0.55,2615.1,2614.7,3.482]
[1724359422671,3.82404,2615.1,2614.7,3.482]
[1724359423821,3.8241,2615.0,2614.7,3.482]
[1724359425919,4.3743,2614.9,2614.3,7.4556]
[1724359426120,3.82455,2614.7,2614.3,4.9741]
[1724359427216,7.64919,2614.7,2614.3,1.149]
[1724359427403,3.82455,2614.7,2614.3,1.149]
[1724359427614,3.82476,2614.6,2614.3,1.149]
[1724359429720,3.82454,2614.7,2614.3,1.149]
[1724359431743,3.82454,2614.7,2614.3,4.9741]
[1724359432057,3.82403,2615.1,2614.6,3.82465]
[1724359433335,0.55,2615.0,2614.6,3.82465]
[1724359435059,0.55,2615.0,2614.5,4.97374]
[1724359435238,0.55,2615.0,2614.5,8.79848]
[1724359435414,0.55,2615.0,2614.5,4.97374]
[1724359435812,4.37414,2615.0,2614.5,4.97374]
[1724359437462,3.82447,2614.8,2614.4,2.4265]
[1724359437767,3.82447,2614.8,2614.4,3.5755]
[1724359439577,3.82447,2614.8,2614.4,7.40046]
[1724359440484,3.82429,2614.9,2614.4,8.523019]
[1724359442242,3.82429,2614.9,2614.4,7.40046]
[1724359443243,3.82429,2614.9,2614.4,7.40039]
[1724359445383,3.82439,2614.8,2614.4,6.25139]
[1724359445544,3.82439,2614.8,2614.4,7.40039]
[1724359449931,0.55,2615.0,2614.6,1.149]
[1724359450096,7.64803,2615.1,2614.7,2.4469]
[1724359450735,3.82409,2615.0,2614.7,2.4469]
[1724359454460,3.82395,2615.1,2614.8,1.149]
[1724359454592,2.81159314,2615.7,2615.3,3.82358]
[1724359454796,0.5995754,2616.0,2615.6,1.149]
[1724359455058,3.82255,2616.1,2615.8,1.149]
[1724359456424,3.82263,2616.0,2615.8,1.149]
[1724359457502,3.82255,2616.1,2615.8,1.149]
[1724359458105,7.64516,2616.1,2615.8,1.149]
[1724359459546,3.82263,2616.0,2615.8,1.149]
[1724359464342,3.82263,2616.0,2615.6,1.149]
[1724359464639,3.82263,2616.0,2615.7,0.34212]
[1724359466805,3.82279,2615.9,2615.7,0.34212]
[1724359467007,3.82279,2615.9,2615.5,2.2722]
[1724359467230,3.82279,2615.9,2615.6,1.149]
[1724359468356,3.82292,2615.8,2615.5,2.2722]
[1724359469277,3.82315,2615.7,2615.5,2.2722]
[1724359470400,3.82315,2615.7,2615.4,1.149]
[1724359470598,3.82337,2615.5,2615.3,9.6859]
[1724359471200,3.82368,2615.3,2614.9,2.3259]
[1724359471350,3.8235,2615.4,2614.9,7.616028]
[1724359471799,3.8235,2615.4,2615.0,1.149]
[1724359473403,3.82369,2615.3,2615.0,1.149]
[1724359473695,3.82369,2615.3,2614.9,2.3259]
[1724359473915,3.82381,2615.2,2614.9,2.3259]
[1724359475698,3.82365,2615.3,2614.9,2.3259]
[1724359478054,3.82365,2615.3,2615.0,1.149]
[1724359479267,3.82332,2615.6,2615.0,2.26134]
[1724359479493,0.55,2615.5,2615.1,3.82392]
[1724359480305,4.37336,2615.5,2615.1,3.82392]
[1724359482558,4.37336,2615.5,2615.0,1.149]
[1724359482762,4.37336,2615.5,2615.0,4.97307]
[1724359484184,3.82351,2615.4,2615.0,1.149]